bitfinex/quotes_ETHUSD_20251221
["timestamp","ask_amount","ask_price","bid_price","bid_amount"]
[1766324414150,0.405504,2963.1,2962.6,3.282]
[1766324415133,0.405504,2963.3,2962.6,3.837]
[1766324415442,0.405504,2963.1,2962.6,3.837]
[1766324416636,0.405504,2963.1,2962.6,3.764378]
[1766324416948,0.405504,2962.7,2962.0,0.548241]
[1766324417150,0.258,2962.6,2962.0,0.548241]
[1766324417312,25.98295,2962.5,2962.0,0.548241]
[1766324417716,0.258,2962.4,2962.0,0.548241]
[1766324417945,0.258,2962.4,2962.0,1.103241]
[1766324419239,6.47,2962.7,2962.0,1.103241]
[1766324419437,0.258,2962.7,2962.0,1.30266142]
[1766324420154,0.1964964,2962.7,2962.0,1.30266142]
[1766324420327,0.1964964,2962.7,2962.0,1.85766142]
[1766324420656,0.258,2962.7,2962.0,1.85766142]
[1766324420852,7.4846121,2963.7,2962.1,0.52455235]
[1766324420853,6.47,2963.7,2962.1,0.52455235]
[1766324421156,4.727508,2963.5,2962.1,0.52455235]
[1766324421320,4.727508,2963.5,2962.0,1.85766142]
[1766324421522,0.405504,2963.4,2962.0,1.658241]
[1766324421722,25.98295,2963.1,2962.0,1.658241]
[1766324421947,25.98295,2962.9,2962.0,1.658241]
[1766324422156,8.839411,2962.9,2962.0,1.658241]
[1766324422830,0.258,2963.0,2962.0,1.658241]
[1766324422831,0.605504,2963.7,2962.0,2.213241]
[1766324423036,0.405504,2963.3,2962.0,2.213241]
[1766324423235,0.405504,2963.1,2962.0,2.213241]
[1766324423623,0.258,2963.0,2962.1,3.3541]
[1766324424048,0.258,2963.0,2962.1,5.8302]
[1766324424840,0.258,2963.0,2962.2,3.37775025]
[1766324425136,0.258,2963.0,2962.3,0.58538503]
[1766324425533,0.258,2963.3,2962.3,0.58538503]
[1766324425838,0.258,2963.3,2962.4,0.02365025]
[1766324426473,0.001,2963.8,2962.6,0.02365025]
[1766324426659,0.001,2963.8,2962.9,2.5876]
[1766324426962,0.001,2963.8,2963.0,0.59284]
[1766324427564,0.001,2963.8,2963.0,0.62658957]
[1766324427766,0.001,2963.8,2963.0,1.18158957]
[1766324428863,0.001,2963.8,2963.0,1.14784]
[1766324429649,0.001,2963.8,2963.0,0.555]
[1766324430234,0.001,2963.8,2963.0,1.11]
[1766324431028,0.001,2963.8,2963.0,4.4508]
[1766324431328,0.001,2963.8,2963.1,0.03374843]
[1766324431560,0.001,2963.8,2963.1,3.3408]
[1766324431744,0.001,2963.8,2963.1,0.70721496]
[1766324431956,0.001,2963.8,2963.0,1.11]
[1766324432332,0.001,2963.8,2963.0,1.13365025]
[1766324432532,0.001,2963.8,2963.0,1.68865025]
[1766324433568,0.001,2963.8,2963.0,5.02945025]
[1766324433979,0.001,2963.8,2963.1,3.3408]
[1766324434282,0.001,2963.8,2963.2,0.76170503]
[1766324434775,0.001,2963.8,2963.0,1.665]
[1766324434973,0.001,2963.8,2963.0,2.22]
[1766324436592,0.001,2963.8,2963.3,3.2538]
[1766324436969,0.259,2964.1,2963.1,0.25965025]
[1766324437149,0.259,2964.1,2963.3,5.8305]
[1766324437345,0.001,2965.0,2963.7,5.8305]
[1766324437657,0.261,2965.0,2964.0,0.02365025]
[1766324437857,0.261,2965.0,2964.0,5.85415025]
[1766324438166,0.261,2965.0,2964.1,3.28753705]
[1766324439077,0.261,2965.0,2964.1,3.2538]
[1766324439380,0.261,2965.0,2964.1,3.83921503]
[1766324439588,0.261,2965.0,2964.1,4.39421503]
[1766324440184,15.96348,2964.9,2964.1,0.555]
[1766324440487,0.26,2964.8,2964.1,0.555]
[1766324442099,0.26,2964.8,2964.1,1.11]
[1766324442392,25.98295,2964.7,2964.1,1.11]
[1766324442584,15.68554,2964.7,2964.1,1.11]
[1766324442786,1.594554,2964.6,2964.1,1.11]
[1766324443084,5.746185,2964.7,2964.1,1.11]
[1766324443683,6.875504,2964.6,2964.1,1.11]
[1766324443892,6.876504,2964.6,2964.1,1.11]
[1766324444093,4.718,2964.5,2964.1,1.11]
[1766324444696,4.718,2964.5,2964.1,1.665]
[1766324445988,1.4194504,2964.4,2964.1,1.665]
[1766324446925,0.405504,2964.3,2964.1,2.5e-07]
[1766324447208,0.405504,2964.0,2963.5,0.002]
[1766324447367,23.854372,2963.8,2963.5,0.002]
[1766324447566,0.405504,2963.6,2963.5,0.002]
[1766324447763,0.405504,2963.7,2963.1,0.555]
[1766324448001,23.854372,2963.6,2963.1,0.555]
[1766324448306,2.051866,2963.6,2963.1,0.555]
[1766324448479,0.245737,2963.5,2963.1,0.555]
[1766324448679,0.261,2963.4,2963.1,0.555]
[1766324449200,0.2,2963.8,2963.1,0.555]
[1766324449368,0.261,2963.7,2963.1,1.11]
[1766324450285,23.854372,2963.6,2963.1,1.11]
[1766324450489,0.261,2963.7,2963.1,1.11]
[1766324450878,2.051532,2963.6,2963.1,1.11]
[1766324451075,0.2312532,2963.5,2963.1,1.11]
[1766324451289,5.406339,2963.6,2963.1,1.11]
[1766324451489,0.261,2963.7,2963.1,1.11]
[1766324451901,0.261,2963.7,2963.1,1.665]
[1766324452669,6.731,2963.7,2963.1,1.665]
[1766324452881,0.6931,2963.6,2963.1,1.665]
[1766324453282,0.261,2963.5,2963.1,1.665]
[1766324454276,0.261,2963.5,2963.1,2.22]
[1766324454793,0.261,2963.4,2963.1,2.22]
[1766324456123,0.261,2963.4,2963.1,2.12762756]
[1766324457086,0.261,2963.4,2963.1,2.68262756]
[1766324459630,0.261,2963.4,2963.1,3.23762756]
[1766324460330,6.376964,2963.3,2962.4,0.002]
[1766324460536,0.6637964,2963.2,2962.4,0.002]
[1766324460693,2.128,2963.3,2962.4,0.002]
[1766324461202,0.262,2963.4,2962.4,0.002]
[1766324461824,2.95842,2963.3,2962.4,0.002]
[1766324462004,2.95842,2963.3,2962.4,0.557]
[1766324462526,0.322042,2963.2,2963.0,0.002]
[1766324462724,2.955092,2963.3,2963.0,0.002]
[1766324463505,0.262,2963.4,2963.0,0.002]
[1766324463725,0.405504,2963.6,2963.0,0.002]
[1766324464020,6.732,2963.7,2963.0,0.002]
[1766324464220,6.47,2963.7,2963.0,0.002]
[1766324464539,0.647,2963.6,2963.0,0.557]
[1766324465953,7.117,2963.6,2963.0,0.557]
[1766324466448,11.474243,2963.5,2963.0,0.557]
[1766324466645,5.546788,2963.5,2963.0,0.557]
[1766324466847,3.856,2963.5,2963.0,1.112]
[1766324467019,7.117,2963.6,2963.0,1.112]
[1766324467020,1.0973,2963.4,2963.0,1.112]
[1766324469459,1.0973,2963.4,2963.0,1.667]
[1766324469664,6.47,2963.6,2963.0,1.667]
[1766324470143,0.001,2963.3,2963.1,0.239]
[1766324471139,0.001,2963.3,2963.0,1.667]
[1766324471751,0.001,2963.3,2963.0,2.222]
[1766324472646,0.001,2963.3,2963.0,1.868806]
[1766324473017,0.001,2963.3,2962.8,0.239]
[1766324473018,0.001,2963.3,2962.4,0.507]
[1766324473218,0.42529975,2962.4,2962.0,1.09535775]
[1766324473422,6.47,2962.9,2962.1,0.24]
[1766324473660,0.647,2962.8,2962.1,0.24]
[1766324474223,0.647,2962.8,2962.1,0.795]
[1766324475333,6.47,2962.9,2962.1,0.795]
[1766324475539,6.47,2962.9,2962.1,3.9261]
[1766324475760,6.47,2962.9,2962.1,6.4523]
[1766324476621,6.47,2962.9,2962.1,0.555]
[1766324476825,6.47,2962.9,2962.1,1.11]
[1766324477058,15.783232,2962.7,2962.1,1.11]
[1766324477224,21.746566,2962.6,2962.2,0.24]
[1766324477555,6.875504,2962.7,2962.3,2e-08]
[1766324477556,16.215824,2962.4,2962.3,2e-08]
[1766324477757,16.215824,2962.4,2962.1,1.11]
[1766324477758,0.405504,2962.3,2962.1,1.11]
[1766324478053,15.091021,2962.3,2962.2,0.24]
[1766324478243,10.5665221,2962.3,2962.2,0.24]
[1766324479260,10.5665221,2962.3,2962.2,0.795]
[1766324481667,0.405504,2962.1,2961.7,0.002001]
[1766324481955,0.405504,2962.1,2960.7,0.002]
[1766324481956,0.405504,2962.1,2961.8,0.046]
[1766324482156,1.849675,2962.0,2961.9,0.241]
[1766324482388,0.2,2962.5,2961.9,0.241]
[1766324482530,0.405504,2962.4,2961.9,1e-08]
[1766324482730,10.194457,2962.3,2961.9,1e-08]
[1766324482947,8.776957,2962.3,2961.9,1e-08]
[1766324483149,2.993,2962.1,2961.9,1e-08]
[1766324483465,4.815465,2962.3,2961.9,1e-08]
[1766324483832,9.740622,2962.3,2962.0,0.2393]
[1766324484536,8.34004,2962.3,2962.0,0.2393]
[1766324484734,8.117261,2962.3,2962.0,0.2393]
[1766324484930,6.47,2962.7,2962.0,0.2393]
[1766324485162,0.001,2963.3,2962.0,0.2393]
[1766324485346,0.2,2963.1,2962.0,0.2393]
[1766324485660,15.088889,2963.2,2962.0,0.2393]
[1766324486053,0.405504,2963.1,2961.2,3.2337]
[1766324486257,15.088889,2962.8,2961.3,0.241]
[1766324486432,0.405504,2962.9,2961.5,3.2337]
[1766324486758,6.47,2962.9,2961.5,2.5125]
[1766324486932,6.47,2962.9,2961.6,5.7462]
[1766324487128,0.647,2962.8,2961.7,3.80832]
[1766324487333,5.217539,2963.1,2961.7,3.80832]
[1766324487560,0.405504,2963.1,2961.8,3.4747]
[1766324487751,0.001,2962.9,2961.8,3.4747]
[1766324488648,0.001,2962.9,2961.8,0.241]
[1766324488940,0.001,2962.9,2961.9,0.241]
[1766324488941,15.088889,2962.8,2961.9,0.241]
[1766324489153,1.5089889,2962.7,2961.9,0.241]
[1766324489360,5.718619,2962.8,2961.9,0.241]
[1766324489547,5.718619,2962.8,2961.8,0.555]
[1766324489731,5.718619,2962.8,2961.9,0.241]
[1766324490059,0.5719619,2962.7,2961.9,0.241]
[1766324490232,8.169916,2962.8,2961.9,0.241]
[1766324490630,8.169916,2962.8,2962.0,0.241]
[1766324491267,0.001,2962.9,2962.0,0.241]
[1766324491465,5.456241,2962.8,2962.0,0.796]
[1766324491663,0.001,2962.9,2962.0,0.796]
[1766324493778,0.001,2962.9,2962.1,0.241]
[1766324494768,0.001,2962.9,2962.0,1.11]
[1766324494977,0.001,2962.9,2962.2,0.242]
[1766324496363,0.001,2962.9,2962.2,0.797]
[1766324497352,0.001,2962.9,2962.2,0.9877]
[1766324499090,0.001,2962.9,2962.2,1.5427]
[1766324501288,0.001,2962.9,2962.2,1.352]
[1766324501594,0.001,2962.9,2962.2,1.907]
[1766324502692,0.001,2962.9,2962.2,1.665]
[1766324502858,0.001,2962.9,2962.3,0.242]
[1766324503060,15.088889,2962.8,2962.2,1.665]
[1766324503365,1.5089889,2962.7,2962.3,0.05434488]
[1766324503698,10.536553,2962.8,2962.3,0.05434488]
[1766324503897,5.970168,2962.8,2962.4,0.243]
[1766324504103,0.001,2962.9,2962.5,7e-08]
[1766324506206,0.001,2962.9,2962.3,1e-07]
[1766324506394,0.001,2962.9,2962.4,0.243]
[1766324508421,0.405504,2962.7,2962.3,0.5550001]
[1766324508594,1.5494393,2962.6,2962.4,1e-08]
[1766324508799,0.001,2962.9,2962.4,1e-08]
[1766324508997,0.405504,2962.8,2962.3,1.1100001]
[1766324509205,0.405504,2962.8,2962.4,0.243]
[1766324511217,0.405504,2962.8,2962.4,0.798]
[1766324512024,0.201,2962.9,2962.3,1.04237886]
[1766324512222,0.405504,2962.6,2962.4,0.02425922]
[1766324512424,0.405504,2962.6,2962.0,1.112]
[1766324512632,15.088889,2962.3,2962.1,0.244]
[1766324512809,0.605504,2962.7,2962.1,0.244]
[1766324513010,0.405504,2962.3,2962.1,0.244]
[1766324513315,1.5494393,2962.2,2962.1,0.244]
[1766324513504,4.722643,2962.5,2962.1,0.244]
[1766324513703,3.755262,2962.5,2962.1,0.799]
[1766324513910,2.892,2962.8,2962.1,0.799]
[1766324514633,0.2846504,2962.9,2962.1,0.799]
[1766324514805,0.001,2962.9,2962.1,0.799]
[1766324516647,0.001,2962.9,2962.3,3.0629]
[1766324516801,0.001,2963.3,2962.4,5.4531]
[1766324517005,0.001,2963.3,2962.5,0.244]
[1766324517200,0.001,2963.3,2962.6,0.56971]
[1766324517934,0.001,2962.9,2962.6,0.56971]
[1766324518941,0.001,2962.9,2962.6,1.12471]
[1766324520649,0.001,2962.9,2962.6,0.555]
[1766324521097,0.001,2962.9,2962.7,0.244]
[1766324522235,0.001,2962.9,2962.6,1.06]
[1766324522405,0.001,2962.9,2962.7,0.245]
[1766324522602,0.001,2962.9,2962.8,0.245]
[1766324522807,0.001,2962.9,2962.6,1.06]
[1766324523035,0.001,2962.9,2962.1,1.11]
[1766324523036,15.088889,2962.8,2962.3,0.245]
[1766324523333,15.088889,2962.5,2962.1,1.11]
[1766324523705,15.088889,2962.5,2962.1,1.665]
[1766324524213,10.921919,2962.5,2962.1,1.665]
[1766324525333,0.001,2962.5,2962.1,1.665]
[1766324526332,0.001,2962.5,2962.1,2.22]
[1766324526635,9.315936,2962.4,2962.1,2.22]
[1766324526803,0.9316936,2962.3,2962.1,2.22]
[1766324527003,9.286644,2962.4,2962.1,2.22]
[1766324527209,3.956996,2962.4,2962.1,2.22]
[1766324528518,6.47,2962.4,2962.1,2.22]
[1766324528719,6.47,2962.4,2962.1,2.775]
[1766324528939,6.40712108,2962.4,2962.1,2.775]
[1766324529946,0.001,2962.5,2962.1,2.775]
[1766324530146,0.001,2962.5,2962.1,3.22215983]
[1766324530726,0.001,2962.5,2962.1,8.71195983]
[1766324530942,0.001,2962.5,2962.1,8.6782]
[1766324531139,0.001,2962.9,2962.2,2.52615869]
[1766324531460,0.001,2962.9,2962.3,6.36275587]
[1766324532663,0.001,2962.9,2962.3,6.11675587]
[1766324532963,0.001,2962.9,2962.4,0.246]
[1766324533459,0.001,2962.9,2962.3,0.62695587]
[1766324533761,0.001,2962.9,2962.3,0.555]
[1766324533950,6.3592127,2962.9,2962.4,0.246]
[1766324536035,6.3592127,2962.9,2962.4,0.801]
[1766324539068,6.3592127,2962.9,2962.4,1.356]
[1766324539265,0.63592127,2962.8,2962.4,1.356]
[1766324541344,0.63592127,2962.8,2962.5,0.247]
[1766324544690,0.63592127,2962.8,2962.5,0.802]
[1766324545386,6.3592127,2962.9,2962.5,0.802]
[1766324546753,6.32833272,2962.9,2962.5,0.802]
[1766324546958,0.001,2962.8,2962.5,0.802]
[1766324547158,0.001,2962.8,2962.5,1.357]
[1766324547390,0.001,2962.8,2962.5,1.11]
[1766324547590,0.001,2962.8,2962.5,1.357]
[1766324549079,0.001,2962.8,2962.5,1.11]
[1766324549281,0.001,2962.8,2962.5,1.358]
[1766324549485,0.001,2962.8,2962.5,1.913]
[1766324550496,0.001,2962.8,2962.5,1.573142]
[1766324551995,0.001,2962.8,2962.5,2.128142]
[1766324552902,0.001,2962.8,2962.5,1.880142]
[1766324553098,0.001,2962.8,2962.0,1.112]
[1766324553099,0.405504,2962.6,2962.0,0.60558]
[1766324553304,8.015747,2962.4,2962.0,0.60558]
[1766324554098,0.405504,2962.4,2962.3,0.002]
[1766324554300,0.405504,2962.4,2962.0,1.16058]
[1766324554479,5.682,2962.3,2962.0,1.16058]
[1766324554879,3.467508,2962.3,2962.0,1.16058]
[1766324555073,0.3873012,2962.2,2962.0,1.16058]
[1766324555298,8.015747,2962.3,2962.0,1.16058]
[1766324557482,8.015747,2962.3,2962.0,1.71558]
[1766324557903,8.015747,2962.3,2962.0,0.70110685]
[1766324558410,8.015747,2962.3,2961.9,0.248]
[1766324558724,8.015747,2962.2,2961.7,0.248]
[1766324558902,0.8421251,2962.2,2961.7,0.248]
[1766324559096,0.8421251,2962.2,2961.1,0.002]
[1766324559097,8.015747,2962.1,2961.4,0.248]
[1766324559314,8.015747,2962.1,2961.1,0.002]
[1766324559521,8.015747,2961.9,2961.1,0.25]
[1766324559895,0.405504,2961.8,2961.3,0.555]
[1766324560137,1.00818684,2962.2,2961.2,0.505]
[1766324560138,8.015747,2961.5,2961.2,0.04552685]
[1766324560298,8.015747,2961.6,2961.2,0.04552685]
[1766324560495,0.8285747,2961.5,2960.8,0.002]
[1766324560695,8.015747,2961.5,2960.8,0.002]
[1766324560926,8.015747,2961.6,2960.8,0.002]
[1766324561817,8.015747,2961.4,2960.7,0.002]
[1766324562196,4.0039,2961.4,2960.7,0.555]
[1766324562391,8.015747,2961.3,2960.8,0.002]
[1766324562614,0.8421251,2961.2,2960.5,0.249]
[1766324562929,8.015747,2961.3,2960.5,0.249]
[1766324564723,8.015747,2961.3,2960.5,0.804]
[1766324564924,8.015747,2961.2,2960.5,0.804]
[1766324566324,6.32833272,2961.3,2960.5,0.804]
[1766324567329,6.32833272,2961.3,2960.5,1.359]
[1766324567541,0.67338367,2961.2,2960.5,1.359]
[1766324569934,0.67338367,2961.2,2960.5,1.361]
[1766324570114,0.67338367,2961.2,2960.5,1.916]
[1766324572408,6.071299,2961.1,2960.5,1.916]
[1766324572716,6.071299,2961.1,2960.5,2.471]
[1766324572917,5.659775,2961.0,2960.5,2.471]
[1766324573735,2.509122,2961.0,2960.5,2.471]
[1766324574140,2.029731,2961.0,2960.5,2.471]
[1766324575328,2.029731,2961.0,2960.5,3.026]
[1766324575534,6.32833272,2961.3,2960.5,3.026]
[1766324575751,6.32833272,2961.3,2960.6,0.5526]
[1766324577610,7.34347698,2962.1,2961.0,2.8649]
[1766324577933,7.34347698,2962.1,2961.1,5.7032]
[1766324578136,6.32833272,2962.1,2961.1,5.7032]
[1766324578340,6.32833272,2962.1,2961.2,0.57032]
[1766324580509,6.32833272,2962.1,2961.2,1.12532]
[1766324581826,0.2,2961.9,2961.2,0.555]
[1766324582010,7.907289,2961.8,2961.2,0.555]
[1766324582339,7.907289,2961.8,2961.2,0.49505117]
[1766324582340,0.2,2961.6,2961.2,0.49505117]
[1766324582550,6.60133272,2961.7,2960.6,0.555]
[1766324582551,7.907289,2961.3,2960.6,0.555]
[1766324582753,6.32833272,2961.5,2960.6,0.806]
[1766324582913,0.273,2961.7,2960.7,0.3583]
[1766324583528,7.907289,2961.9,2960.7,0.3583]
[1766324584120,7.907289,2961.9,2960.6,1.361]
[1766324585044,0.605504,2961.6,2960.6,1.11]
[1766324585218,7.907289,2961.4,2960.6,1.11]
[1766324585541,7.907289,2961.4,2960.6,1.916]
[1766324587149,2.592864,2961.4,2960.6,1.916]
[1766324587333,0.2865864,2961.3,2960.6,1.916]
[1766324587544,5.392565,2961.3,2960.6,1.916]
[1766324587843,6.32833272,2961.3,2960.6,1.916]
[1766324588021,6.32833272,2961.3,2960.6,2.471]
[1766324590431,6.32833272,2961.3,2960.6,3.026]
[1766324591549,6.32833272,2961.3,2960.6,2.775]
[1766324591849,6.32833272,2961.3,2960.6,3.027]
[1766324592049,0.63283327,2961.2,2960.6,3.027]
[1766324592748,7.907289,2961.1,2960.6,2.775]
[1766324592949,8.312793,2961.0,2960.6,3.33]
[1766324593153,7.907289,2960.9,2960.6,3.33]
[1766324593459,7.907289,2960.8,2960.6,3.33]
[1766324593660,1.42356217,2960.7,2960.6,3.33]
[1766324593876,0.4858,2960.6,2958.9,4.817906]
[1766324594160,0.4858,2960.6,2959.0,0.252]
[1766324594520,0.4858,2960.6,2959.1,0.03379405]
[1766324594727,0.405504,2960.5,2958.6,0.02365025]
[1766324594926,2.403,2960.4,2958.7,0.252]
[1766324595149,2.403,2960.2,2957.9,0.02365025]
[1766324595340,2.403,2960.0,2958.6,0.555]
[1766324595543,0.5548504,2960.3,2958.6,0.555]
[1766324595544,2.403,2959.8,2958.6,0.555]
[1766324595744,1.8276,2959.6,2958.6,0.252]
[1766324596925,1.8276,2959.6,2957.6,0.02365025]
[1766324596926,0.2,2959.3,2957.2,0.02365025]
[1766324597135,1.8256,2958.9,2957.4,2.90495025]
[1766324597359,1.8256,2958.7,2957.5,0.54249503]
[1766324597666,1.8256,2958.7,2957.6,0.03381119]
[1766324598062,1.8256,2958.7,2957.5,0.252]
[1766324598544,1.8256,2958.7,2957.4,3.4363]
[1766324598749,1.8256,2958.7,2957.5,0.252]
[1766324599262,1.8256,2958.7,2957.6,0.03381119]
[1766324599465,1.8256,2958.5,2957.6,0.03381119]
[1766324600182,1.8256,2958.5,2957.6,0.58881119]
[1766324601346,1.8256,2959.1,2958.0,5.3086]
[1766324601553,1.8256,2959.1,2958.1,0.253]
[1766324601757,1.8256,2959.1,2958.2,0.03380434]
[1766324601955,1.8256,2959.1,2958.3,5.3086]
[1766324602155,0.95064494,2960.3,2958.1,0.253]
[1766324602156,1.8256,2959.7,2958.5,2.8813]
[1766324602356,1.8256,2959.7,2958.6,5.5616]
[1766324602555,1.8256,2959.7,2958.7,0.253]
[1766324602743,1.8256,2959.7,2958.8,0.55616]
[1766324602938,1.8256,2959.7,2958.8,2.98346]
[1766324603167,2.84141797,2960.2,2959.0,2.8813]
[1766324603473,1.8256,2960.1,2959.0,2.8813]
[1766324604465,2.05365025,2962.0,2959.2,5.3086]
[1766324604466,8.224699,2961.1,2959.2,5.3086]
[1766324604769,1.8256,2960.4,2959.3,0.28679177]
[1766324604942,1.8256,2960.2,2959.3,0.28679177]
[1766324605143,1.261,2960.0,2958.4,2.45835025]
[1766324605341,0.475,2960.5,2958.4,2.45835025]
[1766324605342,1.261,2959.8,2958.5,3.3729]
[1766324605582,1.261,2959.6,2958.6,0.253]
[1766324606483,1.261,2959.6,2958.6,0.28679977]
[1766324606980,1.261,2959.6,2958.7,0.32764998]
[1766324607145,1.261,2959.6,2958.8,0.03379748]
[1766324607585,1.261,2959.6,2958.8,2.85169748]
[1766324607785,1.261,2959.6,2958.7,0.555]
[1766324607947,1.261,2959.4,2958.7,0.555]
[1766324609287,1.261,2959.2,2958.7,0.555]
[1766324609790,1.261,2959.2,2958.7,1.11]
[1766324611978,1.261,2959.2,2958.7,1.665]
[1766324614562,1.261,2959.2,2958.7,2.22]
[1766324617359,1.261,2959.6,2958.7,3.0779]
[1766324617591,1.261,2959.6,2958.8,2.7182]
[1766324617796,0.001,2959.7,2959.0,2.74185025]
[1766324617998,1.261,2960.3,2959.1,5.28929405]
[1766324618297,1.261,2960.3,2959.2,0.53129443]
[1766324618465,1.261,2960.3,2959.3,0.254]
[1766324619298,1.261,2960.8,2959.5,2.5373]
[1766324619464,1.261,2960.8,2959.8,5.2555]
[1766324619667,1.261,2960.8,2959.9,0.255]
[1766324620186,0.001,2960.9,2960.0,2.5373]
[1766324620367,0.001,2960.9,2959.9,0.255]
[1766324620368,0.68143327,2960.9,2959.9,0.255]
[1766324620569,1.261,2960.8,2959.9,2.9732]
[1766324620763,0.001,2960.9,2960.0,2.5373]
[1766324620963,0.001,2960.9,2959.9,0.255]
[1766324621295,1.261,2960.8,2960.0,2.7182]
[1766324622057,1.261,2960.8,2960.0,3.2732]
[1766324622264,1.261,2960.8,2960.1,0.60655]
[1766324622995,0.001,2960.9,2960.1,5.86205]
[1766324623185,0.001,2960.9,2960.4,2.7182]
[1766324623368,0.001,2960.9,2960.5,0.255]
[1766324624499,0.001,2960.9,2960.5,0.81]
[1766324626199,0.001,2960.9,2960.5,4.13475]
[1766324626889,0.001,2960.9,2960.5,4.68975]
[1766324628174,0.001,2960.9,2960.5,1.97155]
[1766324628371,0.001,2960.9,2960.5,1.365]
[1766324628603,0.001,2960.9,2960.5,0.0913]
[1766324629168,0.001,2960.9,2960.5,0.6463]
[1766324631604,0.001,2960.9,2960.5,1.2013]
[1766324632182,0.278,2960.9,2960.5,1.2013]
[1766324632376,7.633997,2960.8,2960.5,1.2013]
[1766324633510,0.93863327,2960.9,2960.5,1.2013]
[1766324633875,0.66163327,2960.9,2960.5,1.7563]
[1766324636209,0.66163327,2960.9,2960.5,2.3113]
[1766324637824,0.001,2960.9,2960.5,2.3113]
[1766324638525,0.277,2960.8,2960.5,1.0857]
[1766324638725,0.01542846,2960.7,2960.5,1.41870001]
[1766324638884,0.277,2960.8,2960.5,1.41870001]
[1766324638885,0.29242846,2960.8,2960.5,1.41870001]
[1766324639428,0.29242846,2960.8,2960.5,1.42070001]
[1766324639602,6.62076118,2960.8,2960.5,1.42070001]
[1766324639788,0.66217612,2960.7,2960.5,1.42070001]
[1766324639989,6.99050884,2960.7,2960.5,0.40565708]
[1766324640241,24.096945,2960.5,2960.0,0.55497342]
[1766324640527,6.99050884,2960.7,2960.0,0.55497342]
[1766324640528,0.277,2960.4,2960.0,0.55497342]
[1766324641194,0.277,2960.4,2960.0,1.10997342]
[1766324641904,19.41314,2960.3,2960.0,1.10997342]
[1766324642105,1.969014,2960.2,2960.0,1.10997342]
[1766324642282,10.604758,2960.3,2960.0,1.10997342]
[1766324642702,0.405504,2960.3,2960.0,0.094745]
[1766324642921,0.01542846,2960.2,2960.0,0.094745]
[1766324643098,30.0,2960.1,2959.5,0.555]
[1766324643298,0.278,2960.0,2959.5,0.555]
[1766324643499,0.278,2960.0,2959.5,1.11]
[1766324645813,0.278,2960.0,2959.5,1.665]
[1766324647526,0.278,2960.2,2959.5,1.665]
[1766324648628,0.278,2960.4,2959.5,2.222]
[1766324649601,0.555,2960.7,2959.5,2.75]
[1766324649904,0.001,2960.8,2959.7,5.1711]
[1766324650112,0.001,2960.8,2959.8,0.257]
[1766324650627,0.001,2960.8,2959.9,0.03378492]
[1766324650810,0.001,2960.8,2960.0,0.54618849]
[1766324651638,0.001,2960.8,2960.1,0.03378264]
[1766324651840,6.32833272,2961.2,2960.4,2.3721]
[1766324652020,0.001,2961.3,2960.6,2.799]
[1766324652219,0.001,2961.3,2960.7,3.056]
[1766324652419,0.001,2961.3,2960.8,0.54281]
[1766324653909,0.001,2961.3,2960.8,1.09781]
[1766324656137,0.001,2961.3,2960.8,0.555]
[1766324656312,0.001,2961.3,2960.8,1.11]
[1766324658840,0.001,2961.3,2960.8,1.665]
[1766324661843,0.001,2961.3,2960.8,2.22]
[1766324664443,0.001,2961.3,2960.8,2.775]
[1766324667054,0.001,2961.3,2960.8,3.33]
[1766324669440,0.001,2961.3,2960.8,3.885]
[1766324670436,0.001,2961.3,2960.8,3.755436]
[1766324670835,30.0,2961.2,2960.8,3.755436]
[1766324671047,3.0001,2961.1,2960.8,3.755436]
[1766324671225,30.0,2961.2,2960.8,3.755436]
[1766324671425,8.846885,2961.2,2960.8,3.755436]
[1766324671826,8.846885,2961.2,2960.8,4.312436]
[1766324672555,6.32833272,2961.1,2960.8,4.312436]
[1766324674325,6.32833272,2961.1,2960.8,4.867436]
[1766324674525,0.63283327,2961.0,2960.8,4.867436]
[1766324676354,0.91083327,2961.0,2960.8,4.867436]
[1766324677641,0.91083327,2961.0,2960.8,5.422436]
[1766324678351,7.23916599,2961.0,2960.8,5.422436]
[1766324679956,6.96116599,2961.0,2960.8,5.422436]
[1766324680162,0.6961166,2960.9,2960.8,5.977436]
[1766324682960,0.6961166,2960.9,2960.8,6.532436]
[1766324684264,0.6961166,2960.9,2960.8,6.492436]
[1766324685665,0.6961166,2960.9,2960.8,7.047436]
[1766324688464,0.6961166,2960.9,2960.8,7.602436]
[1766324689455,0.6343955,2960.9,2960.8,7.602436]
[1766324690778,0.6343955,2960.9,2960.8,8.157436]
[1766324692269,0.6343955,2960.9,2960.8,8.058248]
[1766324693074,0.6343955,2960.9,2960.8,8.613248]
[1766324694476,6.60833272,2961.0,2960.8,8.613248]